bitfinex/quotes_SOLUSD_20250425
["timestamp","ask_amount","ask_price","bid_price","bid_amount"]
[1745622363839,7.77400715,151.09,150.98,1.6072]
[1745622366832,1.5604,151.08,150.98,1.6072]
[1745622367009,9.19224558,151.08,150.98,1.6072]
[1745622367327,31.75181043,151.07,150.98,1.6072]
[1745622367528,0.14216157,151.05,150.98,1.6072]
[1745622367720,0.14216157,151.05,150.98,0.063]
[1745622370145,81.6,151.06,150.98,0.063]
[1745622370432,81.6,151.06,150.99,1.6068]
[1745622373025,81.6,151.06,150.99,14.5668]
[1745622378661,81.6,151.06,151.0,18.64964886]
[1745622379028,7.63184558,151.1,151.0,18.64964886]
[1745622379357,96.1275,151.12,151.02,18.64964886]
[1745622383670,104.94506859,151.12,151.03,1.6557]
[1745622384658,104.94506859,151.12,151.04,18.64964886]
[1745622384834,91.98506859,151.12,151.04,31.60964886]
[1745622385039,91.98506859,151.12,151.05,6.3142]
[1745622385242,81.6,151.12,151.05,6.3142]
[1745622385740,81.6,151.12,151.07,1.6557]
[1745622385978,23.60604937,151.13,151.07,1.6557]
[1745622386661,23.60604937,151.13,151.08,18.64964886]
[1745622389863,23.60604937,151.13,151.07,1.6557]
[1745622392577,23.60604937,151.13,151.08,18.64964886]
[1745622395693,23.60604937,151.13,151.1,18.64964886]
[1745622395984,0.03486212,151.14,151.11,1.6172]
[1745622401001,0.03486212,151.14,151.12,18.64964886]
[1745622408676,0.03486212,151.14,151.13,0.14216157]
[1745622410607,0.03486212,151.14,151.12,18.64964886]
[1745622411315,0.03486212,151.14,151.1,6.1681]
[1745622414904,0.03486212,151.14,151.11,18.64964886]
[1745622420428,0.03486212,151.14,151.09,12.96]
[1745622421518,0.03486212,151.14,151.1,18.64964886]
[1745622422417,0.03486212,151.14,151.11,0.14216157]
[1745622425935,0.03486212,151.14,151.13,18.79181043]
[1745622431448,0.03486212,151.14,151.13,20.11438539]
[1745622431628,0.063,151.16,151.15,44.79181043]
[1745622431828,0.063,151.16,151.15,59.0541837]
[1745622432029,0.063,151.16,151.15,60.6925837]
[1745622432233,0.063,151.16,151.15,66.8304837]
[1745622433317,0.063,151.16,151.15,73.44642812]
[1745622433817,0.063,151.19,151.15,73.44642812]
[1745622433818,0.063,151.19,151.16,18.79181043]
[1745622434013,0.063,151.19,151.18,18.79181043]
[1745622434827,0.063,151.19,151.18,0.14216157]
[1745622435558,0.063,151.19,151.18,1.46442365]
[1745622440830,0.063,151.19,151.18,52.72870407]
[1745622441034,0.063,151.19,151.18,35.39950407]
[1745622443257,0.063,151.2,151.19,52.40600449]
[1745622443623,0.063,151.2,151.19,72.27600449]
[1745622444160,0.063,151.24,151.21,44.64964886]
[1745622444457,0.063,151.24,151.21,60.63492415]
[1745622444646,0.063,151.24,151.21,240.95492415]
[1745622444849,0.063,151.24,151.21,240.63331043]
[1745622445155,0.063,151.24,151.21,254.9160223]
[1745622445355,0.063,151.24,151.22,19.79181043]
[1745622445726,0.063,151.24,151.22,21.00102311]
[1745622445928,0.063,151.24,151.22,27.73404182]
[1745622446266,0.063,151.24,151.22,54.21692371]
[1745622451080,0.063,151.24,151.22,137.01692371]
[1745622451259,0.063,151.24,151.22,135.69556149]
[1745622452272,0.063,151.24,151.22,138.99627756]
[1745622456273,0.063,151.24,151.22,119.12627756]
[1745622456469,0.063,151.24,151.22,120.44775223]
[1745622460567,0.063,151.24,151.22,109.53415427]
[1745622460767,0.063,151.24,151.22,104.12249778]
[1745622462586,0.063,151.24,151.22,130.12249778]
[1745622462766,0.063,151.24,151.22,47.32249778]
[1745622462968,0.063,151.24,151.22,21.32249778]
[1745622465552,0.063,151.24,151.22,20.1132851]
[1745622465953,0.063,151.24,151.22,44.79181043]
[1745622468969,0.063,151.24,151.22,46.11356098]
[1745622479109,0.063,151.24,151.22,44.79181043]
[1745622480508,0.063,151.24,151.22,31.56964886]
[1745622482411,0.063,151.24,151.22,31.71181043]
[1745622482985,0.063,151.24,151.22,31.56964886]
[1745622493635,0.063,151.24,151.22,18.64964886]
[1745622493834,0.063,151.24,151.22,31.58964886]
[1745622502530,0.063,151.24,151.22,18.64964886]
[1745622502750,0.063,151.24,151.22,31.58964886]
[1745622513129,0.063,151.24,151.22,18.64964886]
[1745622513335,0.063,151.24,151.22,31.58964886]
[1745622530069,0.063,151.24,151.22,31.73181043]
[1745622535539,0.063,151.24,151.22,33.05383489]
[1745622537869,0.063,151.24,151.22,31.73181043]
[1745622556684,0.063,151.24,151.23,20.36391043]
[1745622556876,0.03,151.28,151.27,18.64964886]
[1745622557178,0.03,151.28,151.27,13.06216157]
[1745622558890,0.03,151.33,151.3,51.12704886]
[1745622559068,0.03,151.33,151.31,0.14216157]
[1745622560489,0.03,151.33,151.31,25.40075894]
[1745622560792,0.03,151.33,151.31,18.79181043]
[1745622561585,0.03,151.33,151.31,25.40075894]
[1745622562184,0.03,151.33,151.32,44.79181043]
[1745622562388,0.03,151.33,151.32,62.91665886]
[1745622562689,0.03,151.33,151.32,36.91665886]
[1745622562895,0.03,151.33,151.32,37.91665886]
[1745622563093,0.03,151.33,151.32,38.32032219]
[1745622563276,0.03,151.33,151.32,43.61469998]
[1745622564083,0.03,151.33,151.32,44.61469998]
[1745622564287,0.03,151.33,151.32,43.61469998]
[1745622564908,0.03,151.33,151.32,38.32032219]
[1745622566295,0.03,151.33,151.32,39.32032219]
[1745622566486,0.03,151.33,151.32,44.67260776]
[1745622566882,0.03,151.33,151.32,43.67260776]
[1745622567105,0.03,151.33,151.32,44.67260776]
[1745622567403,0.03,151.35,151.33,0.14216157]
[1745622569391,0.03,151.35,151.33,51.39988549]
[1745622569778,0.03,151.35,151.33,26.39988549]
[1745622570582,0.03,151.35,151.33,28.05038549]
[1745622571583,0.03,151.35,151.34,44.79181043]
[1745622572488,0.03,151.35,151.34,51.39944886]
[1745622573084,0.03,151.35,151.34,52.39944886]
[1745622575725,0.03,151.41,151.35,0.14216157]
[1745622576005,1.5969,151.5,151.42,0.14216157]
[1745622576219,1.5969,151.5,151.45,0.14216157]
[1745622577884,1.5969,151.5,151.44,18.64964886]
[1745622578688,1.5969,151.5,151.43,12.92]
[1745622578889,0.03,151.51,151.43,12.92]
[1745622579089,8.1202,151.48,151.43,12.92]
[1745622581218,8.1202,151.48,151.41,12.92]
[1745622591833,7.6202,151.48,151.41,12.92]
[1745622593833,7.6202,151.48,151.42,18.64964886]
[1745622594938,7.6202,151.48,151.41,12.92]
[1745622596246,7.6202,151.48,151.42,18.64964886]
[1745622599377,0.03,151.51,151.43,0.14216157]
[1745622599538,0.03,151.51,151.42,18.64964886]
[1745622602538,0.03,151.51,151.43,0.14216157]
[1745622623479,0.03,151.51,151.44,18.64964886]
[1745622623699,0.03,151.51,151.43,0.14216157]
[1745622623854,0.03,151.51,151.43,18.79181043]
[1745622628283,0.03,151.51,151.45,0.14216157]
[1745622631460,0.03,151.51,151.45,18.79181043]
[1745622635613,0.03,151.51,151.45,25.39456096]
[1745622635790,0.03,151.51,151.45,31.67166096]
[1745622636607,0.03,151.51,151.45,25.06891043]
[1745622636911,0.03,151.51,151.45,31.67166539]
[1745622638982,0.03,151.51,151.45,24.92674886]
[1745622639318,0.03,151.51,151.45,18.64964886]
[1745622644022,0.03,151.51,151.47,18.64964886]
[1745622650023,0.03,151.51,151.46,12.94]
[1745622650721,0.03,151.51,151.47,12.94]
[1745622655528,0.03,151.51,151.48,18.64964886]
[1745622659343,0.03,151.51,151.47,12.94]
[1745622666947,0.03,151.51,151.43,18.79181043]
[1745622667126,0.03,151.51,151.47,12.9]
[1745622668031,0.03,151.51,151.43,18.64964886]
[1745622668360,0.03,151.51,151.46,12.9]
[1745622671438,0.03,151.51,151.47,18.64964886]
[1745622680174,0.03,151.51,151.43,205.94]
[1745622680378,0.03,151.51,151.47,12.9]
[1745622681952,1.6875,151.51,151.47,12.9]
[1745622682984,1.6875,151.51,151.44,12.9]
[1745622690510,6.045,151.5,151.44,12.9]
[1745622697694,6.045,151.5,151.42,16.34256493]
[1745622698071,6.045,151.5,151.42,12.9]
[1745622701400,0.17216157,151.49,151.42,12.9]
[1745622708200,81.77216157,151.49,151.42,12.9]
[1745622708917,81.77216157,151.49,151.4,0.063]
[1745622709925,18.64964886,151.48,151.4,0.063]
[1745622710102,0.14216157,151.46,151.4,0.063]
[1745622714140,81.63,151.49,151.4,0.063]
[1745622714713,81.63,151.49,151.41,12.92]
[1745622721439,0.14216157,151.48,151.41,12.92]
[1745622726125,18.79181043,151.48,151.41,12.92]
[1745622731059,38.79181043,151.48,151.4,0.063]
[1745622731265,18.79181043,151.46,151.4,0.063]
[1745622731558,25.99984156,151.46,151.4,0.063]
[1745622731768,18.79181043,151.44,151.4,0.063]
[1745622731940,81.6,151.43,151.4,0.063]
[1745622732140,0.14216157,151.42,151.4,0.063]
[1745622747292,5.49850733,151.42,151.4,0.063]
[1745622753301,81.6,151.41,151.4,0.063]
[1745622761194,100.39181043,151.41,151.4,0.063]
[1745622761501,107.59984156,151.41,151.4,0.063]
[1745622765014,25.99984156,151.41,151.4,0.063]
[1745622768507,31.82253241,151.41,151.4,0.063]
[1745622770123,32.82253241,151.41,151.4,0.063]
[1745622770525,38.79181043,151.4,151.38,0.063]
[1745622770697,51.82253241,151.4,151.38,0.063]
[1745622772224,51.82253241,151.4,151.37,0.063]
[1745622773295,64.74253241,151.4,151.37,0.063]
[1745622773800,18.79181043,151.38,151.37,0.063]
[1745622774506,81.6,151.39,151.37,0.063]
[1745622775015,0.14216157,151.38,151.37,0.063]
[1745622775394,18.79181043,151.38,151.35,0.063]
[1745622775599,18.79181043,151.36,151.29,6.2669]
[1745622775811,0.14216157,151.34,151.29,6.2669]
[1745622797064,0.14216157,151.34,151.31,0.063]
[1745622800162,0.14216157,151.32,151.31,0.063]
[1745622801574,18.79181043,151.32,151.31,0.063]
[1745622804787,18.79181043,151.32,151.29,0.063]
[1745622806093,81.6,151.31,151.29,0.063]
[1745622854060,0.14216157,151.3,151.29,0.063]
[1745622857149,18.79181043,151.3,151.29,0.063]
[1745622869281,18.79181043,151.3,151.26,0.063]
[1745622869496,45.99982044,151.3,151.26,0.063]
[1745622871169,25.99982044,151.3,151.26,0.063]
[1745622873476,81.6,151.29,151.26,0.063]
[1745622879273,0.14216157,151.28,151.26,0.063]
[1745622883283,81.6,151.29,151.26,0.063]
[1745622906316,0.14216157,151.28,151.26,0.063]
[1745622907017,18.79181043,151.28,151.26,0.063]
[1745622908729,81.6,151.27,151.26,0.063]
[1745622911405,0.14216157,151.26,151.19,0.063]
[1745622911619,81.6,151.25,151.19,0.063]
[1745622911919,18.79181043,151.24,151.19,0.063]
[1745622912125,81.6,151.23,151.19,0.063]
[1745622912514,100.39181043,151.22,151.19,0.063]
[1745622912723,81.6,151.21,151.19,0.063]
[1745622912912,86.78270925,151.21,151.19,0.063]
[1745622914020,18.79181043,151.2,151.19,0.063]
[1745622914222,38.79181043,151.2,151.19,0.063]
[1745622914431,53.37441375,151.2,151.19,0.063]
[1745622918438,31.68025218,151.2,151.19,0.063]
[1745622918625,25.99982044,151.2,151.19,0.063]
[1745622918923,25.85765887,151.2,151.19,0.063]
[1745622919232,25.99982044,151.2,151.19,0.063]
[1745622920034,25.99982044,151.2,151.17,0.063]
[1745622922317,0.14216157,151.19,151.17,0.063]
[1745622923534,81.74216157,151.19,151.17,0.063]
[1745622935456,81.6,151.19,151.17,1.5669]
[1745622941729,0.14216157,151.18,151.17,0.063]
[1745622941935,0.14216157,151.18,151.15,0.063]
[1745622955474,18.79181043,151.18,151.15,0.063]
[1745622956875,7.20801001,151.17,151.15,0.063]
[1745622958679,81.6,151.16,151.15,0.063]
[1745622974996,81.74216157,151.16,151.15,0.063]
[1745622975302,81.6,151.16,151.15,0.063]
[1745622985198,100.39181043,151.16,151.15,0.063]
[1745622985583,31.71181043,151.16,151.15,0.063]
[1745622985912,38.91982044,151.16,151.15,0.063]
[1745622986402,44.74241375,151.16,151.15,0.063]
[1745622989412,64.74241375,151.16,151.15,0.063]
[1745622991217,0.14216157,151.15,151.13,0.063]
[1745622993312,18.79181043,151.15,151.13,0.063]
[1745622996721,81.6,151.14,151.13,0.063]
[1745622999323,100.39181043,151.14,151.13,0.063]
[1745622999518,107.59982044,151.14,151.13,0.063]
[1745623002618,25.99982044,151.14,151.13,0.063]
[1745623006229,45.99982044,151.14,151.13,0.063]
[1745623006431,51.82241375,151.14,151.13,0.063]
[1745623007327,54.06540597,151.14,151.13,0.063]
[1745623007504,58.64003013,151.14,151.13,0.063]
[1745623009525,79.50003013,151.14,151.13,0.063]
[1745623011130,120.15664886,151.11,151.1,0.063]
[1745623011428,65.74241375,151.11,151.1,0.063]
[1745623014442,92.42003013,151.11,151.1,0.063]
[1745623014727,47.71739596,151.1,151.09,0.03]
[1745623014898,59.50003013,151.1,151.09,0.03]
[1745623015415,61.24831043,151.09,151.06,0.063]
[1745623015617,67.07090374,151.09,151.06,0.063]
[1745623015801,74.27891375,151.09,151.06,0.063]
[1745623017317,39.64964886,151.07,151.06,0.063]
[1745623017522,39.79181043,151.07,151.06,0.063]
[1745623017721,45.61440374,151.07,151.06,0.063]
[1745623020107,65.47440374,151.07,151.06,0.063]
[1745623021128,44.61440374,151.07,151.06,0.063]
[1745623021346,24.47224217,151.07,151.06,0.063]
[1745623021631,18.64964886,151.07,151.06,0.063]
[1745623021836,18.79181043,151.07,151.06,0.063]
[1745623022505,18.64964886,151.07,151.06,0.063]
[1745623023218,18.79181043,151.07,151.06,0.063]
[1745623026143,39.74259331,151.11,151.06,0.063]
[1745623026309,18.64964886,151.1,151.06,0.063]
[1745623026508,0.14216157,151.09,151.06,0.063]
[1745623029350,0.14216157,151.09,151.04,1.6628]
[1745623030120,81.6,151.06,151.04,1.6628]
[1745623040929,0.14216157,151.05,151.0,1.5774]
[1745623042251,81.6,151.06,151.0,1.5774]
[1745623054354,81.6,151.06,151.0,14.5374]
[1745623062467,81.6,151.06,151.01,18.67964886]
[1745623062658,81.6,151.06,151.02,8.1701]
[1745623064071,12.96,151.12,151.02,8.1701]
[1745623066773,12.96,151.12,151.03,18.64964886]
[1745623066975,0.20516157,151.13,151.03,18.64964886]
[1745623068478,0.063,151.13,151.03,18.64964886]
[1745623078676,0.063,151.13,151.04,12.94]
[1745623092589,0.20516157,151.13,151.04,12.94]
[1745623102993,0.063,151.13,151.05,18.64964886]
[1745623103187,0.063,151.13,151.06,8.0264]
[1745623112318,0.063,151.13,151.07,12.92]
[1745623137234,0.063,151.13,151.04,31.56964886]
[1745623141932,0.063,151.13,151.05,12.92]
[1745623148211,0.063,151.13,151.06,1.6352]
[1745623148828,0.063,151.13,151.07,25.06004886]
[1745623152516,0.063,151.13,151.07,6.4104]
[1745623152834,0.063,151.13,151.06,1.6352]
[1745623187561,0.20516157,151.13,151.06,1.6352]
[1745623187766,1.75606157,151.13,151.04,12.92]
[1745623187944,18.64964886,151.12,151.04,12.92]
[1745623188144,24.47224217,151.12,151.02,1.5653]
[1745623188459,0.14216157,151.1,151.02,1.5653]
[1745623191050,94.52,151.11,151.02,1.5653]
[1745623191253,81.6,151.11,151.02,1.5653]
[1745623193864,81.6,151.11,151.03,12.92]
[1745623205684,0.14216157,151.1,151.03,12.92]
[1745623205900,0.14216157,151.1,151.02,1.5653]
[1745623206195,18.79181043,151.1,151.01,0.03]
[1745623207296,31.71181043,151.1,151.01,0.03]
[1745623207689,13.06216157,151.1,151.01,0.03]
[1745623214286,81.6,151.11,151.02,1.5951]
[1745623220192,0.14216157,151.1,151.02,1.5951]
[1745623223095,0.14216157,151.1,151.01,0.03]
[1745623224368,0.14216157,151.08,151.01,0.03]
[1745623224574,0.14216157,151.06,151.01,0.03]
[1745623261714,18.79181043,151.06,151.01,0.03]
[1745623262035,24.61440374,151.06,151.01,0.03]
[1745623263019,18.79181043,151.04,151.01,0.03]
[1745623263231,0.14216157,151.02,151.01,0.03]
[1745623265125,81.6,151.03,151.01,0.03]
[1745623283940,0.14216157,151.02,151.01,0.03]
[1745623284610,18.79181043,151.02,151.01,0.03]
[1745623285128,24.01769812,151.02,151.01,0.03]
[1745623286848,24.01769812,151.02,150.97,0.03]
[1745623287030,0.14216157,151.0,150.97,0.03]
[1745623289953,0.14216157,150.98,150.97,0.03]
[1745623292153,81.6,150.99,150.97,0.03]
[1745623296945,81.6,150.99,150.96,0.03]
[1745623297146,0.14216157,150.98,150.96,0.03]
[1745623307167,81.6,150.99,150.96,0.03]
[1745623311380,0.14216157,150.98,150.96,0.03]
[1745623322174,81.6,150.99,150.96,0.03]
[1745623328378,0.14216157,150.98,150.96,0.03]
[1745623332400,18.79181043,150.98,150.96,0.03]
[1745623333567,18.64964886,150.96,150.9,0.03]
[1745623333771,0.14216157,150.94,150.9,0.03]
[1745623340090,0.14216157,150.92,150.9,0.03]
[1745623340479,81.6,150.93,150.9,0.03]
[1745623354477,0.14216157,150.92,150.9,0.03]
[1745623371523,81.6,150.93,150.9,0.03]
[1745623372817,0.14216157,150.92,150.9,0.03]
[1745623377102,0.14216157,150.92,150.85,1.6399]
[1745623377103,81.6,150.91,150.85,1.6399]
[1745623377314,100.39181043,150.9,150.83,0.03]
[1745623379616,18.79181043,150.88,150.83,0.03]
[1745623379812,81.6,150.87,150.83,0.03]
[1745623380128,18.79181043,150.86,150.83,0.03]
[1745623380323,81.6,150.85,150.83,0.03]
[1745623382411,0.14216157,150.84,150.83,0.03]
[1745623382618,81.6,150.85,150.83,0.03]
[1745623384851,0.14216157,150.84,150.83,0.03]
[1745623385132,18.79181043,150.84,150.83,0.03]
[1745623389164,0.14216157,150.84,150.83,0.03]
[1745623390317,0.14216157,150.84,150.81,0.03]
[1745623395041,81.6,150.85,150.81,0.03]
[1745623442201,0.14216157,150.84,150.81,0.03]
[1745623442616,18.79181043,150.84,150.81,0.03]
[1745623442916,0.14216157,150.82,150.81,0.03]
[1745623443586,5.56983759,150.82,150.81,0.03]
[1745623443894,0.14216157,150.82,150.81,0.03]
[1745623445883,18.79181043,150.82,150.76,0.03]
[1745623446083,0.14216157,150.8,150.76,0.03]
[1745623452487,18.79181043,150.8,150.76,0.03]
[1745623452990,25.99982044,150.8,150.76,0.03]
[1745623455114,7.35017158,150.8,150.76,0.03]
[1745623456808,25.99982044,150.8,150.76,0.03]
[1745623456994,81.6,150.79,150.76,0.03]
[1745623457311,0.14216157,150.78,150.76,0.03]
[1745623482428,0.14216157,150.78,150.74,0.03]
[1745623482429,18.79181043,150.78,150.74,0.03]
[1745623482612,18.79181043,150.76,150.74,0.03]
[1745623483441,81.6,150.75,150.74,0.03]
[1745623484111,100.24964886,150.74,150.69,0.03]
[1745623484437,18.79181043,150.72,150.66,1.553]
[1745623486113,87.42259331,150.73,150.66,1.553]
[1745623486321,81.6,150.73,150.66,1.553]
[1745623487227,0.14216157,150.72,150.66,1.553]
[1745623494765,81.6,150.73,150.66,1.553]
[1745623500249,0.14216157,150.72,150.66,1.553]
[1745623500860,31.73181043,150.72,150.65,0.03]
[1745623501067,0.14216157,150.7,150.65,0.03]
[1745623506762,81.6,150.71,150.65,0.03]
[1745623510960,0.14216157,150.7,150.65,0.03]
[1745623521074,18.79181043,150.7,150.65,0.03]
[1745623521440,81.6,150.69,150.65,0.03]
[1745623522364,100.39181043,150.68,150.65,0.03]
[1745623522543,0.14216157,150.66,150.65,0.03]
[1745623524362,81.6,150.67,150.65,0.03]
[1745623536760,23.36257532,150.75,150.65,18.67964886]
[1745623536761,81.6,150.74,150.65,18.67964886]
[1745623537080,81.6,150.74,150.66,13.02]
[1745623541682,81.6,150.74,150.67,18.64964886]
[1745623541883,81.6,150.74,150.68,7.815]
[1745623542598,6.5574,150.78,150.68,7.815]
[1745623545485,26.19276489,150.79,150.69,18.64964886]
[1745623545798,0.14216157,150.79,150.69,18.64964886]
[1745623545999,81.663,150.8,150.69,18.64964886]
[1745623547303,0.14216157,150.79,150.69,18.64964886]
[1745623549005,0.14216157,150.79,150.68,7.815]
[1745623551685,31.82241375,150.79,150.68,7.815]
[1745623551892,0.14216157,150.77,150.68,7.815]
[1745623563188,5.82259331,150.78,150.68,7.815]
[1745623564707,5.82259331,150.78,150.69,18.64964886]
[1745623564917,13.26216157,150.79,150.69,18.64964886]
[1745623565289,13.12,150.79,150.69,18.64964886]
[1745623565489,13.12,150.79,150.71,18.64964886]
[1745623565915,81.663,150.8,150.71,31.76964886]
[1745623567625,0.14216157,150.79,150.71,13.12]
[1745623567803,18.79181043,150.79,150.7,1.5147]
[1745623567997,31.82241375,150.79,150.7,1.5147]
[1745623568511,0.14216157,150.77,150.7,1.5147]
[1745623576328,18.79181043,150.77,150.68,6.1676]
[1745623577009,18.79181043,150.77,150.67,14.7651]
[1745623577330,0.14216157,150.75,150.67,14.7651]
[1745623585737,0.14216157,150.75,150.67,1.6451]
[1745623592844,87.42259331,150.76,150.67,1.6451]
[1745623593522,87.42259331,150.76,150.68,24.71804886]
[1745623593725,81.6,150.76,150.68,24.71804886]
[1745623594048,81.6,150.76,150.7,18.64964886]
[1745623594251,81.6,150.76,150.7,31.70964886]
[1745623601333,0.063,150.8,150.72,18.64964886]
[1745623610068,1.652,150.8,150.71,1.6248]
[1745623610268,87.56475488,150.79,150.69,13.06]
[1745623610563,100.24964886,150.78,150.69,13.06]
[1745623610743,0.14216157,150.77,150.69,13.06]
[1745623611168,87.42259331,150.78,150.69,13.06]
[1745623611566,87.42259331,150.78,150.7,18.64964886]
[1745623616252,81.6,150.78,150.7,18.64964886]
[1745623616566,81.6,150.78,150.72,18.64964886]
[1745623617972,0.063,150.8,150.72,18.64964886]
[1745623618479,0.063,150.8,150.72,25.09384886]
[1745623620355,0.063,150.8,150.73,0.14216157]
[1745623620554,0.063,150.8,150.75,18.64964886]
[1745623622478,0.063,150.8,150.76,1.5576]
[1745623622689,0.063,150.8,150.77,18.64964886]
[1745623624089,0.063,150.8,150.77,25.10104886]
[1745623625583,0.063,150.8,150.78,0.14216157]
[1745623625754,0.063,150.8,150.79,13.02]
[1745623631288,0.063,150.8,150.79,31.81181043]
[1745623634790,0.063,150.8,150.79,33.45081043]
[1745623637164,0.063,150.8,150.79,41.08254993]
[1745623639596,0.063,150.83,150.82,18.64964886]
[1745623639896,0.063,150.83,150.82,19.79181043]
[1745623640076,0.063,150.83,150.82,18.79181043]
[1745623641490,0.063,150.83,150.82,26.74753535]
[1745623641794,0.063,150.83,150.82,20.11711499]
[1745623641983,0.063,150.83,150.82,21.11711499]
[1745623642495,0.063,150.83,150.82,20.11711499]
[1745623642799,0.063,150.83,150.82,18.79181043]
[1745623647106,0.063,150.83,150.82,0.14216157]
[1745623648376,0.063,150.83,150.82,1.14216157]
[1745623648593,0.063,150.83,150.82,7.77258193]
[1745623648784,0.063,150.83,150.82,6.77258193]
[1745623648982,0.063,150.83,150.82,0.14216157]
[1745623656006,0.063,150.83,150.82,25.42223079]
[1745623657107,0.063,150.83,150.82,18.79181043]
[1745623664017,0.063,150.83,150.82,31.77181043]
[1745623665210,0.063,150.83,150.82,31.62964886]
[1745623666717,0.063,150.83,150.82,12.98]
[1745623667102,0.063,150.83,150.8,12.98]
[1745623667306,0.063,150.83,150.78,12.98]
[1745623668113,0.063,150.83,150.72,1.6319]
[1745623668317,6.1751,150.81,150.73,12.98]
[1745623668491,6.1751,150.81,150.74,18.64964886]
[1745623669516,1.6545,150.82,150.75,0.14216157]
[1745623672723,1.6545,150.82,150.75,6.77563364]
[1745623673711,1.6545,150.82,150.75,0.14216157]
[1745623681541,1.6545,150.82,150.75,6.77564041]
[1745623681995,1.6545,150.82,150.75,0.14216157]
[1745623682193,1.6545,150.82,150.75,6.77561805]
[1745623682418,1.6545,150.82,150.75,0.14216157]
[1745623683231,0.063,150.83,150.77,0.14216157]
[1745623683438,0.063,150.83,150.79,18.64964886]
[1745623684925,0.063,150.83,150.78,12.94]
[1745623689628,0.063,150.83,150.79,18.64964886]
[1745623690360,0.063,150.83,150.8,0.14216157]
[1745623691010,0.063,150.83,150.79,18.64964886]
[1745623702134,0.063,150.83,150.8,0.14216157]
[1745623702650,0.063,150.83,150.82,18.64964886]
[1745623703761,0.063,150.83,150.78,13.08216157]
[1745623704040,0.063,150.83,150.79,18.79181043]
[1745623709441,0.063,150.83,150.79,18.64964886]
[1745623711258,0.063,150.83,150.8,13.06]
[1745623711548,0.063,150.83,150.78,13.06]
[1745623749975,0.063,150.83,150.79,18.64964886]
[1745623755179,0.063,150.83,150.79,31.66964886]
[1745623765987,0.063,150.83,150.79,37.96154886]
[1745623766202,0.063,150.83,150.8,0.14216157]
[1745623767996,0.063,150.83,150.8,6.77338076]
[1745623768193,0.063,150.83,150.82,0.14216157]
[1745623768791,0.063,150.83,150.82,20.34081043]
[1745623774686,0.063,150.83,150.82,28.29666034]
[1745623776201,0.063,150.83,150.82,54.29666034]
[1745623776404,0.063,150.83,150.82,55.29666034]
[1745623782297,0.063,150.83,150.82,54.29666034]
[1745623783106,0.063,150.83,150.82,46.34081043]
[1745623784107,0.063,150.83,150.82,20.34081043]
[1745623791708,0.063,150.83,150.82,18.79181043]
[1745623792114,0.063,150.83,150.82,18.64964886]
[1745623798808,0.063,150.83,150.82,18.79181043]
[1745623800332,0.063,150.83,150.82,18.64964886]
[1745623800501,0.063,150.83,150.82,31.60964886]
[1745623806025,0.063,150.83,150.82,12.96]
[1745623829144,0.063,150.83,150.8,12.94]
[1745623831955,0.063,150.83,150.75,18.64964886]
[1745623832253,0.063,150.83,150.76,12.94]
[1745623834837,0.063,150.83,150.77,18.64964886]
[1745623841550,0.063,150.83,150.78,0.14216157]
[1745623841738,0.063,150.83,150.78,1.71186157]
[1745623846644,0.063,150.83,150.8,18.64964886]
[1745623855409,0.063,150.83,150.73,4.98942161]